Cogmind - Beta 16 @@@ ROGUE MODE // 2025.10.25 @ 22:23:57 Player: Moodge Result: Destroyed by G-47 Trooper with Particle Gun Performance ------------- Evolutions (2) 1000 Regions Visited (3) 600 Robots Destroyed (38) 190 Value Destroyed (1174) 1174 Prototype IDs (1) 20 Alien Tech Used (0) 0 Bonus (0) 0 TOTAL SCORE: 2984 Bonus ------- None Cogmind --------- Core Integrity 0/550 Matter 235/300 Energy 150/150 System Corruption 10% Temperature Cool (-91) Movement Treading (145) Location -8/Materials Parts ------- > --- POWER (2) -------- Micro Nuclear Core > --- PROPULSION (4) --- Advanced Treads Advanced Treads Advanced Treads Advanced Treads > --- UTILITY (3) ------ Cryofiber Web Microactuators > --- WEAPON (2) ------- Gauss Rifle > --- INVENTORY (5) ---- Advanced Treads Peak State ------------ > --- POWER ------------ Micro Nuclear Core Micro Nuclear Core > --- PROPULSION ------- Advanced Treads Advanced Treads Advanced Treads Advanced Treads > --- UTILITY ---------- Cryofiber Web Microactuators Microactuators > --- WEAPON ----------- Heavy EM Shotgun Gauss Rifle > --- INVENTORY -------- Advanced Treads Advanced Treads Advanced Treads Gauss Rifle [Rating: 40] Favorites ----------- Power Micro Nuclear Core Engine Light Ion Engine Power Core Micro Nuclear Core Propulsion Improved Carbon-fiber Leg Treads Advanced Treads Leg Improved Carbon-fiber Leg Wheel Compact Wheel Flight Unit Flight Unit Utility Small Storage Unit Device Structural Scanner Storage Small Storage Unit Processor Terrain Scan Processor Protection Hardened Heavy Armor Plating Weapon Beam Cannon Energy Gun Medium Laser Energy Cannon Beam Cannon Ballistic Gun High-powered Shotgun Special Melee Weapon Datajack Build | -11 -10 -9 -8 ------- Run | Yrd Mat Mat Mat Slots Evolved 4 | . . 2 2 Power 1 | . . . 1 Propulsion 2 | . . 1 1 Utility 1 | . . 1 . Weapon . | . . . . Parts Attached 63 | 4 6 16 37 Power 10 | 1 1 3 5 Engine 6 | 1 1 3 1 Core 4 | . . . 4 Reactor . | . . . . Propulsion 24 | 2 . 8 14 Treads 8 | . . 1 7 Leg 11 | 2 . 3 6 Wheel 1 | . . 1 . Hover . | . . . . Flight 4 | . . 3 1 Utility 16 | . 3 5 8 Device 7 | . 1 1 5 Storage 2 | . 1 1 . Processor 3 | . 1 1 1 Hackware . | . . . . Protection 4 | . . 2 2 Artifact . | . . . . Weapon 13 | 1 2 . 10 Energy Gun 4 | 1 1 . 2 Energy Cannon 5 | . 1 . 4 Ballistic Gun 3 | . . . 3 Ballistic Cannon . | . . . . Launcher . | . . . . Special Weapon . | . . . . Impact Weapon . | . . . . Slashing Weapon . | . . . . Piercing Weapon . | . . . . Special Melee Weapon 1 | . . . 1 Unidentified Prototypes 1 | . . . 1 Corrupted Parts 2 | . . . 2 System Corruption 8 | . . . 8 Parts Lost 26 | . 3 7 16 Power 5 | . 1 2 2 Propulsion 10 | . 1 2 7 Utility 4 | . . 2 2 Weapon 7 | . 1 1 5 Highest Loss Streak 6 | . 2 3 6 To Critical Strikes . | . . . . Average Backups 4 | 2 3 7 4 Power 1 | . 1 1 . Propulsion . | . . . . Utility 2 | . 1 3 2 Weapon . | . . 1 . Tool/Special . | . . . . Unused Backups 10 | . 1 1 8 Power 1 | . . . 1 Propulsion 1 | . . . 1 Utility 5 | . . 1 4 Weapon 2 | . 1 . 1 Tool/Special 1 | . . . 1 Average Slot Usage (%) 72 | . 93 67 68 Engine 7 | . 12 7 6 Core 6 | . . . 10 Treads 3 | . . 2 4 Leg 15 | . 26 8 14 Flight 2 | . . 3 2 Device 6 | . 2 9 7 Storage 7 | . 14 11 4 Processor 4 | . 9 2 3 Protection 3 | . . 7 2 Energy Gun 5 | . 19 . 2 Energy Cannon 6 | . 6 10 5 Ballistic Gun 1 | . . . 3 Peak Build Rating 40 | 4 9 10 40 Average Rating 16 | 3 7 7 23 On Entrance 4 | . 4 8 7 Avg Prop Armor Cover (%) 2 | . . 2 3 Naked Turns . | . . . . Heaviest Build 56 | 5 15 17 56 Greatest Support 88 | 20 20 33 88 Greatest Overweight (x) 13 | . 1 5 13 Average Overweight (x) . | . . . . Largest Inventory Capacity 10 | 5 8 10 10 Average Capacity 7 | 5 8 8 7 Most Carried 10 | 4 8 8 10 Average Carried 4 | 2 3 7 4 Final Capacity 8 | 5 8 8 5 Final Carried 8 | 4 8 5 1 Class Distribution -------------------- 84% | Mutant 15% | Scavenger-Mutant Dominant Class ---------------- Mutant | -10/Materials Scavenger-Mutant | -9/Materials Mutant | -8/Materials Resources | -11 -10 -9 -8 ----------- Run | Yrd Mat Mat Mat Matter Collected 912 | 203 97 150 462 Remotely . | . . . . Salvage Created 1491 | . 421 427 643 Parts 80 | . 22 22 36 Haulers Intercepted . | . . . . Recyclers Shooed 1 | . . . 1 Parts Field Recycled . | . . . . Retrieved Matter . | . . . . Parts Self-Destructed . | . . . . Prevented . | . . . . Parts Restored . | . . . . Kills | -11 -10 -9 -8 ------- Run | Yrd Mat Mat Mat Combat Hostiles Destroyed 32 | . 7 11 14 Guns 8 | . 5 . 3 Cannons 21 | . . 11 10 AOE 2 | . 1 . 1 Classes Destroyed 8 | . 5 2 1 Builder 2 | . 2 . . Recycler 2 | . 2 . . Watcher 2 | . 1 . 1 Swarmer 9 | . 3 3 3 Grunt 11 | . 4 3 4 Duelist 1 | . . 1 . Sentry 8 | . . 4 4 Hunter 3 | . . . 3 Best Kill Streak 4 | . 4 4 2 Combat Bots Only 4 | . 4 4 2 Max Kills in Single Turn 1 | . 1 1 1 Gunslinging . | . . . . Exploded 1 | . 1 . 1 Melee . | . . . . Uniques/NPCs Destroyed . | . . . . Combat | -11 -10 -9 -8 -------- Run | Yrd Mat Mat Mat Hostile Shots Fired 404 | . 50 72 282 Missed 89 | . 10 12 67 Hits 315 | . 40 60 215 Melee 4 | . . 4 . Projectile 311 | . 40 56 215 Critical Strikes 15 | . . 2 13 Damage Taken 4518 | . 489 799 3230 Core 811 | . 116 134 561 Absorbed by Shields . | . . . . Core Remaining (%) 73 | 100 53 66 . Volleys Fired 164 | . 56 36 72 Largest 2 | . 2 1 2 Hottest 160 | . 110 60 160 Shots Fired 210 | . 73 36 101 Gun 112 | . 68 . 44 Cannon 98 | . 5 36 57 Launcher . | . . . . Special . | . . . . Kinetic 29 | . . . 29 Thermal 159 | . 61 36 62 Explosive . | . . . . Electromagnetic 22 | . 12 . 10 Robot Hit Streak 19 | . 18 10 19 Robot Miss Streak 5 | . 4 2 5 Penetration Max . | . . . . Secondary Targets 1 | . . . 1 Max Gunslinging Chain 1 | . . . 1 Shots Hit Robots 145 | . 45 29 71 Core Hits 58 | . 17 16 25 Critical Kills . | . . . . Critical Parts Destroyed . | . . . . Critical Strikes 3 | . 3 . . Burn 3 | . 3 . . Melee Attacks . | . . . . Impact . | . . . . Slashing . | . . . . Piercing . | . . . . Sneak Attacks . | . . . . Combat Hostiles . | . . . . Follow-up Attacks . | . . . . Damage Inflicted 2793 | . 715 525 1553 Guns 1172 | . 520 . 652 Cannons 1386 | . 69 525 792 Explosions 219 | . 126 . 93 Melee . | . . . . Ramming 16 | . . . 16 Kinetic 444 | . . . 444 Thermal 2021 | . 582 525 914 Explosive . | . . . . Electromagnetic 312 | . 133 . 179 Impact . | . . . . Slashing . | . . . . Piercing . | . . . . Highest Corruption 10 | . . . 10 Average Corruption 6 | . . . 6 Corruption Purged . | . . . . Corruption Blocked . | . . . . Effects 14 | . . . 14 Message Errors 2 | . . . 2 Matter Fused 3 | . . . 3 Heat Flow Errors 1 | . . . 1 Energy Discharges 2 | . . . 2 Parts Rejected 1 | . . . 1 Data Loss (minor) 1 | . . . 1 Data Loss (major) 1 | . . . 1 Misfires 1 | . . . 1 Alerts 1 | . . . 1 Weapon Failures 1 | . . . 1 Overload Shots . | . . . . Overflow Damage 17 | . . . 17 Projectiles 17 | . . . 17 Explosions . | . . . . Melee . | . . . . Knockbacks . | . . . . Impact . | . . . . Kinetic . | . . . . Secondary . | . . . . Self-Inflicted Damage 165 | . 80 . 85 Shots 4 | . 2 . 2 Rammed 4 | . . . 4 Targets Rammed 7 | . . . 7 Kicked 3 | . . . 3 Crushed . | . . . . Highest Temperature 636 | . 276 309 636 Average Temperature 158 | . 93 111 194 Received Heat Transfer 1896 | . 168 180 1548 Effects 31 | . 2 . 29 Shutdowns 7 | . . . 7 Energy Bleed 3 | . . . 3 Interference 9 | . 2 . 7 Matter Decay 1 | . . . 1 Short Circuit 4 | . . . 4 Damage (minor) 3 | . . . 3 Damage (major) 4 | . . . 4 Siege Activations . | . . . . Martial Activations . | . . . . Shielding Activations . | . . . . Robots Disrupted . | . . . . Combat Hostiles . | . . . . Robots Corrupted . | . . . . Combat Hostiles . | . . . . Parts Fried 1 | . . . 1 Impact Corruptions . | . . . . Robots Melted 1 | . 1 . . Combat Hostiles 1 | . 1 . . Parts Melted 3 | . 1 . 2 Heat Transferred 4648 | . 1717 1110 1821 Parts Sabotaged . | . . . . Parts Stolen . | . . . . Parts Stripped . | . . . . Power Chain Reactions 4 | . 2 . 2 Alert | -11 -10 -9 -8 ------- Run | Yrd Mat Mat Mat Maximum Alert Level . | . . . . Low Security (%) 100 | 100 100 100 100 Level 1 . | . . . . Level 2 . | . . . . Level 3 . | . . . . Level 4 . | . . . . Level 5 . | . . . . High Security . | . . . . Max Security . | . . . . Peak Influence 133 | . 70 98 133 Initial 37 | . . 10 37 Average 42 | . 31 37 49 Influence Increases 1071 | . 198 326 547 Destroy 0b10 Robot/C 640 | . 140 220 280 Destroy 0b10 Robot/NC 30 | . 25 . 5 Destroy Leader 164 | . 22 60 82 Disable Machine 15 | . . . 15 Destroy Structure 27 | . 11 1 15 Partial Spotted 15 | . . 15 . Lose Combat Pursuer 180 | . . 30 150 Influence Decreases 1034 | . 173 262 599 Entered New Map 67 | . . 15 52 Time Decay 747 | . 143 197 407 Lost Part 220 | . 30 50 140 Squads Dispatched 6 | . 1 2 3 Investigation 2 | . . 1 1 Extermination . | . . . . Reinforcement 4 | . 1 1 2 Assault . | . . . . Garrison . | . . . . Intercept . | . . . . Searches Triggered . | . . . . Construction Impeded . | . . . . Haulers Reinforced . | . . . . Active Scanning Responses . | . . . . Cargo Convoy Interrupts . | . . . . Stealth | -11 -10 -9 -8 --------- Run | Yrd Mat Mat Mat Distress Signals 5 | . . 2 3 Communications Jammed . | . . . . Distress Signals . | . . . . Times Spotted 62 | . 10 19 33 Peak Tracking Total 6 | . 4 6 5 Tactical Retreats 11 | . . 2 9 Traps | -11 -10 -9 -8 ------- Run | Yrd Mat Mat Mat Traps Triggered 3 | . . . 3 Indirectly . | . . . . Trap Hack Attempts . | . . . . Triggered . | . . . . Disarmed . | . . . . Reprogrammed . | . . . . Reused . | . . . . Traps Extracted . | . . . . Installed . | . . . . Triggered . | . . . . Machines | -11 -10 -9 -8 ---------- Run | Yrd Mat Mat Mat Machines Disabled 1 | . . . 1 Max in Single Turn 1 | . . . 1 Machines Repaired . | . . . . Machines Dismantled . | . . . . Machines Sabotaged . | . . . . Overloaded Fab Kills . | . . . . Hacking | -11 -10 -9 -8 --------- Run | Yrd Mat Mat Mat Machines Accessed 3 | . . 1 2 Terminals 1 | . . . 1 Fabricators . | . . . . Repair Stations . | . . . . Recycling Units . | . . . . Scanalyzers 2 | . . 1 1 Garrison Access . | . . . . Total Hacks 11 | . . 7 4 Successful 8 | . . 5 3 Failed 1 | . . 1 . Catastrophic . | . . . . Database Lockouts 2 | . . 1 1 Manual . | . . . . Terminals 1 | . . . 1 Fabricators . | . . . . Repair Stations . | . . . . Recycling Units . | . . . . Scanalyzers 10 | . . 7 3 Garrison Access . | . . . . Terminal Hacks 1 | . . . 1 Locate Traps 1 | . . . 1 Fabricator Hacks . | . . . . Repair Station Hacks . | . . . . Recycling Unit Hacks . | . . . . Scanalyzer 7 | . . 5 2 Insert Component 2 | . . 2 . Analyze 2 | . . 2 . Retrieve Study 3 | . . 1 2 Garrison Access Hacks . | . . . . Unauthorized Hacks . | . . . . Terminals . | . . . . Fabricators . | . . . . Repair Stations . | . . . . Recycling Units . | . . . . Scanalyzers . | . . . . Garrison Access . | . . . . Data Cores Recovered . | . . . . Used . | . . . . Hacking Detections 2 | . . 1 1 Full Trace Events 1 | . . 1 . Feedback Events . | . . . . Feedback Blocked . | . . . . Robot Schematics Acquired . | . . . . Robots Built . | . . . . Authchips . | . . . . Time . | . . . . Total Robot Build Rating . | . . . . Part Schematics Acquired 2 | . . 2 . Parts Built . | . . . . Authchips . | . . . . Time . | . . . . Total Part Build Rating . | . . . . Part Studies Acquired 1 | . . 1 . Parts Repaired . | . . . . Time . | . . . . Parts Recycled . | . . . . Recycled Matter . | . . . . Retrieved Matter . | . . . . Retrieved Components . | . . . . Parts Scanalyzed 2 | . . 2 . Part Schematics Acquired 2 | . . 2 . Parts Damaged . | . . . . Bothacking | -11 -10 -9 -8 ------------ Run | Yrd Mat Mat Mat Used RIF Installer . | . . . . Robots Hacked . | . . . . Non-combat . | . . . . Combat . | . . . . Robot Hacks Applied . | . . . . Relay Couplers Released . | . . . . Fabnet Peak Effective % . | . . . . Robots Rewired . | . . . . Allies Hacked . | . . . . Hacks Repelled . | . . . . Allies | -11 -10 -9 -8 -------- Run | Yrd Mat Mat Mat Total Allies . | . . . . Largest Group . | . . . . Highest-Rated Group . | . . . . Highest-Rated Ally . | . . . . Total Orders . | . . . . Ally Attacks . | . . . . Total Damage . | . . . . Kills . | . . . . Allies Corrupted . | . . . . Allies Melted . | . . . . Intel | -11 -10 -9 -8 ------- Run | Yrd Mat Mat Mat Active Infowar (turns) 998 | . 215 476 307 Optics 292 | . 215 77 . Structural 706 | . . 399 307 Robot Analysis Total . | . . . . Derelict Logs Recovered . | . . . . Drone Launches . | . . . . Drone Recoveries . | . . . . Exploration | -11 -10 -9 -8 ------------- Run | Yrd Mat Mat Mat Turns Passed 2364 | 88 371 476 1429 Spaces Moved 1283 | 72 174 356 681 Core 109 | 14 . 9 86 Treads 144 | . . 42 102 Legs 737 | 58 174 124 381 Wheels 56 | . . 56 . Hover . | . . . . Flight 237 | . . 125 112 Fastest Speed 34 | 50 120 34 34 Average Speed 130 | 106 124 101 149 Slowest Speed 700 | 120 190 300 700 Overloaded Moves . | . . . . Propulsion Burnouts . | . . . . Robots Hopped . | . . . . Potential Cave-ins . | . . . . Cave-ins Triggered . | . . . . Exploration Rate (%) 29 | 4 36 38 39 Regions Visited 3 Branch Regions . Pre-discovered Areas . | . . . . Known Exits Taken 1 | . . 1 . Unknown Exits Taken 2 | 1 1 . . Scrap Searched . | . . . . Spaces Dug . | . . . . Terrain Destroyed 22 | . 9 . 13 Melee . | . . . . Projectile 2 | . . . 2 AOE 20 | . 9 . 11 Terrain Rammed . | . . . . Walls Destroyed . | . . . . Machines Disabled . | . . . . Actions | -11 -10 -9 -8 --------- Run | Yrd Mat Mat Mat Total 1758 | 83 257 431 987 Wait 144 | . 11 10 123 Move 1280 | 71 173 355 681 Hop . | . . . . Pick Up 57 | 8 10 3 36 Fast Attach 18 | . . 11 7 Attach 32 | 4 5 2 21 Detach 2 | . . . 2 Swap 19 | . 1 5 13 Drop 35 | . 1 9 25 Fire 164 | . 56 36 72 Melee . | . . . . Ram 1 | . . . 1 Kick 3 | . . . 3 Crush 3 | . . . 3 Escape Stasis . | . . . . Rewire . | . . . . Trap . | . . . . Miscellaneous . | . . . . Route ------- -11/Scrapyard -10/Materials (discovered 2 exits: *Mat x2) -9/Materials (discovered 3 exits: *Mat x2 / [*Min]) -8/Materials History --------- Turn | Location | Event 2 | -11/Scrapyard | Met Revision 17 9 | -11/Scrapyard | Discovered new exit (range 14) 89 | -11/Scrapyard | Entered Materials 210 | -10/Materials | Discovered new exit (range 15) 317 | -10/Materials | Build established: Mutant 388 | -10/Materials | Discovered new exit (range 3) 460 | -10/Materials | Entered another Materials area 460 | -9/Materials | Evolved 2 slots: Propulsion x1, Utility x1 616 | -9/Materials | Discovered new exit (range 12) 777 | -9/Materials | Discovered new exit (range 4) 897 | -9/Materials | Central database locked down 898 | -9/Materials | Lost 3 parts (1p1n1u) 923 | -9/Materials | Discovered new exit (range 11) 933 | -9/Materials | Identified exit to Materials 936 | -9/Materials | Entered another Materials area 936 | -8/Materials | Evolved 2 slots: Power x1, Propulsion x1 1628 | -8/Materials | Central database locked down 1926 | -8/Materials | Core integrity fell below 50% 2236 | -8/Materials | Core integrity fell below 20% 2320 | -8/Materials | System corruption reached 10% 2365 | -8/Materials | Destroyed by G-47 Trooper with Particle Gun Last Messages --------------- 02307_ Microactuators destroyed. 02309_ Slug penetrates G-47 Trooper. 02311_ G-47 Trooper destroyed. 02313_ System corrupted: Gauss Rifle jammed. 02315_ Slug penetrates Wall. 02315_ R-06 Scavenger collects Aluminum Leg. 02317_ Slug penetrates Wall. 02319_ Gauss Rifle destroyed. 02319_ Integrated Corrupted Gauss Rifle (+2). 02319_ Corrupted Gauss Rifle temporarily disabled. 02320_ Mic. Nuclear Core destroyed. 02329_ Critical hit (Burn: +37). 02335_ 1V93DJF:8%MAI2QRRWISXNW2 02340_ Adv. Treads destroyed. 02353_ System corrupted: Gauss Rifle rejected. 02353_ Acquired Gauss Rifle. 02355_ Slammed into G-47 Trooper. 02359_ K-01 Serf collects debris. 02362_ T-07 Excavator is excavating. Map ----- +----------------------------------------------------+ | ##????????????????????????????? | | ! ##????????????????????????????? | | ##????????????????????????????? | | ##????????????????????????????? | | ####+######????????????????????????????? | | ###????????????????????????????? | | #########??????????????????????? | | #########??????????????????????? | | ### # ##???????????????????#??? | | ### # ##?????????????????? #??? | | ##" "% """ ##????????????????? #??? | | ##" " %""" ##???????????????? #??? | | ####" [" """ ##???????####+### ???? | | ####" "% ##???????# ????? | | ##### ##############??# T????? | | #### ################ ?????? | | #??????????? | | T % ########???? | | ! # #???? | | #### % ################ g/ """ #???? | | ######+################?# g# """ #???? | | ### ! ##???????????# # """ #???? | | ### ##???????????# # #???? | | ### ##???????????# #! #???? | | ### "" ##???????????# #####/##???? | | ### " """ ##???????????#@ g#????!=#???? | | ### " """ ##?????????? +?????=#???? | | ### " """ ##???????? ! #??????#???? | | ### "" ##?????? """ #??????????? | | ### ##???? """ #??????????? | | #############??" """r #??????????? | | ?############?? u #??????????? | | ??????????????????? #??????????? | | ??????????????????? """ t??????????? | | ??????????????????? """ #??????????? | | ????????????????????""" #??????????? | | ?????????????????????? #??????????? | | ?????????????????????? ??????????? | | ??????????????????????" ??????????? | | ??????????????????????" ??????????? | | ??????????????????????? ???????????? | | ???????????????????????????????????????? | | ???????????????????????????????????????? | | ???????????????????????????????????????? | | ???????????????????????????????????????? | | ???????????????????????????????????????? | | ???????????????????????????????????????? | | ???????????????????????????????????????? | | ???????????????????????????????????????? | | ???????????????????????????????????????? | +----------------------------------------------------+ Best States ------------- Heat Dissipation 35 Energy Generation 25 Energy Capacity 250 Matter Stores 300 Matter Capacity 300 Sight Range 18 Terrain Scan Density 85 Base Temperature (-) 100 Armor Coverage 600 Melee Speed Boost 40 Evasion (%) 63 Recoil Reduction 4 Trap Extractor Capacity 6 Item Schematics ----------------- Datajack | -9/Materials | Scanalyzed Lgt. Ion Engine | -9/Materials | Scanalyzed Robot Schematics ------------------ None Fabricated ------------ Nothing Repaired ---------- Nothing Studied --------- Datajack | -9/Materials | Hacked Alien Tech Used ----------------- None Achievements -------------- You Again Challenges ------------ None Game ------ Seed ThiefHackingTorch Manual? 0 Play Time 00:30:18 Cumulative 20.7 hours Start 2025.10.25 @ 21:55:23 End 2025.10.25 @ 22:23:57 Sessions 1 Manual Loads 0 Difficulty Rogue Special Mode None Game No. 66 Rogue 66 Adventurer 0 Explorer 0 Win Type - Total 0 Types 0/0/0/0/0/0/0/0/0/0 Lore% 9 Gallery% 21 Achievement% 18 Wizard Run 0 Options --------- Layout 1 ASCII 0 Keyboard 0 Movement Mouse Keybinds 0 Fullscreen 2 Font 32/SmallcapsGlow Map View 50x35 Zoom Use 0% Tactical HUD 1 Map Filters NONE Filters NONE Steam 1 RUN: d886c2e9-8371-4819-8dd7-927a043477e5